[Event "Early-Titled-Tuesday-Blitz-May-14-2024"]
[Site "Chess.com"]
[Date "2024.05.14"]
[Round "7"]
[White "kekic76"]
[Black "dianamirza"]
[Result "1-0"]
[WhiteElo "2290"]
[BlackElo "1950"]
[TimeControl "180+1"]
[EndTime "9:20:26 PDT"]
[Termination "kekic76 won by resignation"]

1. e4 {[%clk 0:02:59.3]} 1... c5 {[%clk 0:02:34.2]} 2. Nf3 {[%clk 0:02:58.2]}
2... Nc6 {[%clk 0:02:34.3]} 3. d4 {[%clk 0:02:57.9]} 3... cxd4 {[%clk
0:02:34.2]} 4. Nxd4 {[%clk 0:02:58.8]} 4... e6 {[%clk 0:02:34.7]} 5. Nc3 {[%clk
0:02:58.5]} 5... a6 {[%clk 0:02:35.1]} 6. Be3 {[%clk 0:02:58.3]} 6... Nf6 {[%clk
0:02:35.6]} 7. f3 {[%clk 0:02:55.4]} 7... Bb4 {[%clk 0:02:35.8]} 8. Nxc6 {[%clk
0:02:45.7]} 8... bxc6 {[%clk 0:02:34.1]} 9. Qd2 {[%clk 0:02:45]} 9... O-O {[%clk
0:02:31.8]} 10. Be2 {[%clk 0:02:36.2]} 10... d5 {[%clk 0:02:30.5]} 11. O-O-O
{[%clk 0:02:32.4]} 11... Qa5 {[%clk 0:02:26.2]} 12. e5 {[%clk 0:01:54.5]} 12...
Nd7 {[%clk 0:02:13.6]} 13. f4 {[%clk 0:01:53.5]} 13... Bxc3 {[%clk 0:02:13.3]}
14. Qxc3 {[%clk 0:01:52.9]} 14... Qxa2 {[%clk 0:02:12.8]} 15. Qxc6 {[%clk
0:01:49.5]} 15... Rb8 {[%clk 0:01:55.5]} 16. Bd4 {[%clk 0:01:46.2]} 16... Rb4
{[%clk 0:01:08.6]} 17. Bc3 {[%clk 0:01:41.2]} 17... Rb6 {[%clk 0:01:04.8]} 18.
Qc7 {[%clk 0:01:16.1]} 18... a5 {[%clk 0:00:35.6]} 19. Kd2 {[%clk 0:01:00.7]}
19... Rb7 {[%clk 0:00:28]} 20. Qxa5 {[%clk 0:00:56.5]} 20... Qxa5 {[%clk
0:00:23.8]} 21. Bxa5 {[%clk 0:00:57.4]} 21... Nc5 {[%clk 0:00:23]} 22. Bc3
{[%clk 0:00:45.9]} 22... Ne4+ {[%clk 0:00:23]} 23. Ke3 {[%clk 0:00:37]} 23...
Nxc3 {[%clk 0:00:17.3]} 24. bxc3 {[%clk 0:00:37.9]} 24... Bd7 {[%clk 0:00:16.4]}
25. Rb1 {[%clk 0:00:28.2]} 25... Rc7 {[%clk 0:00:15.4]} 26. Rb3 {[%clk
0:00:25.8]} 26... Rfc8 {[%clk 0:00:15.1]} 27. Kd4 {[%clk 0:00:24.2]} 27... f6
{[%clk 0:00:13]} 28. Rhb1 {[%clk 0:00:23.1]} 28... Kf7 {[%clk 0:00:12.9]} 29.
Rb7 {[%clk 0:00:19.6]} 29... Ke7 {[%clk 0:00:11.1]} 30. Rxc7 {[%clk 0:00:18.6]}
30... Rxc7 {[%clk 0:00:11.4]} 31. g4 {[%clk 0:00:15.1]} 31... Bc6 {[%clk
0:00:07.6]} 32. Rb6 {[%clk 0:00:10.1]} 32... Kd7 {[%clk 0:00:07.4]} 33. Bd3
{[%clk 0:00:08.3]} 33... Rb7 {[%clk 0:00:06.9]} 34. Rxb7+ {[%clk 0:00:07.6]}
34... Bxb7 {[%clk 0:00:07.8]} 35. Bxh7 {[%clk 0:00:07.7]} 35... Ba6 {[%clk
0:00:06.2]} 36. exf6 {[%clk 0:00:05.5]} 36... gxf6 {[%clk 0:00:07.1]} 37. g5
{[%clk 0:00:06]} 37... Ke7 {[%clk 0:00:06.7]} 38. g6 {[%clk 0:00:06]} 38... Kf8
{[%clk 0:00:06.5]} 39. h4 {[%clk 0:00:04.2]} 39... Kg7 {[%clk 0:00:07]} 40. f5
{[%clk 0:00:04.3]} 40... exf5 {[%clk 0:00:06.2]} 41. Kxd5 {[%clk 0:00:04.6]}
41... Bb5 {[%clk 0:00:05]} 42. c4 {[%clk 0:00:04.5]} 42... Be8 {[%clk
0:00:03.3]} 43. c5 {[%clk 0:00:04.7]} 43... Bxg6 {[%clk 0:00:00.9]} 44. Bxg6
{[%clk 0:00:04.4]} 44... Kxg6 {[%clk 0:00:01.8]} 45. c6 {[%clk 0:00:05]} 45...
f4 {[%clk 0:00:01.8]} 46. Ke4 {[%clk 0:00:05.1]} 46... f5+ {[%clk 0:00:01.6]}
47. Kxf4 {[%clk 0:00:04.7]} 47... Kf7 {[%clk 0:00:02.4]} 48. c7 {[%clk
0:00:05.1]} 48... Ke7 {[%clk 0:00:02.9]} 49. c8=Q {[%clk 0:00:05.9]} 1-0

[Event "Early-Titled-Tuesday-Blitz-May-14-2024"]
[Site "Chess.com"]
[Date "2024.05.14"]
[Round "7"]
[White "yonaltimur"]
[Black "Guldona_2007"]
[Result "1/2-1/2"]
[WhiteElo "2354"]
[BlackElo "2204"]
[TimeControl "180+1"]
[EndTime "9:20:29 PDT"]
[Termination "Game drawn by repetition"]

1. e4 {[%clk 0:03:00.9]} 1... c5 {[%clk 0:02:59.4]} 2. Nf3 {[%clk 0:03:00.7]}
2... Nc6 {[%clk 0:02:59.5]} 3. Bb5 {[%clk 0:03:00.3]} 3... d6 {[%clk 0:02:57.9]}
4. O-O {[%clk 0:02:55.9]} 4... e5 {[%clk 0:02:57.2]} 5. c3 {[%clk 0:02:55.4]}
5... Nf6 {[%clk 0:02:57.1]} 6. d4 {[%clk 0:02:55.1]} 6... cxd4 {[%clk
0:02:37.8]} 7. cxd4 {[%clk 0:02:28.7]} 7... exd4 {[%clk 0:02:37.5]} 8. Nxd4
{[%clk 0:02:27.6]} 8... Bd7 {[%clk 0:02:37.3]} 9. Re1 {[%clk 0:02:26.1]} 9...
Be7 {[%clk 0:02:36.8]} 10. Nc3 {[%clk 0:02:25.7]} 10... O-O {[%clk 0:02:34.4]}
11. Bf4 {[%clk 0:01:46.8]} 11... a6 {[%clk 0:02:16.7]} 12. Bf1 {[%clk
0:01:40.6]} 12... Nxd4 {[%clk 0:02:13.1]} 13. Qxd4 {[%clk 0:01:41.5]} 13... Bc6
{[%clk 0:02:08.7]} 14. e5 {[%clk 0:01:41.6]} 14... dxe5 {[%clk 0:02:07.8]} 15.
Qxe5 {[%clk 0:01:41.5]} 15... Re8 {[%clk 0:02:06.9]} 16. Rad1 {[%clk 0:01:40.5]}
16... Qc8 {[%clk 0:02:06.4]} 17. Qd4 {[%clk 0:01:34.5]} 17... Bf8 {[%clk
0:02:04.8]} 18. Bg5 {[%clk 0:01:02.8]} 18... Rxe1 {[%clk 0:01:59.3]} 19. Rxe1
{[%clk 0:01:02.3]} 19... Qf5 {[%clk 0:01:57.5]} 20. h4 {[%clk 0:00:52.5]} 20...
Re8 {[%clk 0:01:49.5]} 21. Rxe8 {[%clk 0:00:49.8]} 21... Nxe8 {[%clk 0:01:49.4]}
22. Bd3 {[%clk 0:00:49.5]} 22... Qe6 {[%clk 0:01:48.3]} 23. Kf1 {[%clk
0:00:44.2]} 23... h6 {[%clk 0:01:45.9]} 24. Be3 {[%clk 0:00:39.8]} 24... Nf6
{[%clk 0:01:39.1]} 25. Bc4 {[%clk 0:00:39.1]} 25... Qd7 {[%clk 0:01:37.9]} 26.
Qxd7 {[%clk 0:00:38.4]} 26... Nxd7 {[%clk 0:01:37.8]} 27. Ke2 {[%clk 0:00:38.2]}
27... Ne5 {[%clk 0:01:37.6]} 28. Bd5 {[%clk 0:00:37]} 28... Bxd5 {[%clk
0:01:32.8]} 29. Nxd5 {[%clk 0:00:37.9]} 29... Bd6 {[%clk 0:01:32.5]} 30. b3
{[%clk 0:00:32.3]} 30... Ng4 {[%clk 0:01:30.2]} 31. Bd4 {[%clk 0:00:30.9]} 31...
Ne5 {[%clk 0:01:26.3]} 32. f3 {[%clk 0:00:30.1]} 32... Nc6 {[%clk 0:01:25.9]}
33. Bb6 {[%clk 0:00:29.1]} 33... f6 {[%clk 0:01:25.4]} 34. Kd3 {[%clk 0:00:28]}
34... Kf7 {[%clk 0:01:25]} 35. Ke4 {[%clk 0:00:22]} 35... Nb4 {[%clk 0:01:22.2]}
36. Nxb4 {[%clk 0:00:21.5]} 36... Bxb4 {[%clk 0:01:22.5]} 37. Kd5 {[%clk
0:00:21.1]} 37... g6 {[%clk 0:01:05.9]} 38. Bf2 {[%clk 0:00:12.8]} 38... h5
{[%clk 0:01:02.6]} 39. g4 {[%clk 0:00:12.3]} 39... Be7 {[%clk 0:00:57.3]} 40.
gxh5 {[%clk 0:00:07.5]} 40... gxh5 {[%clk 0:00:57.2]} 41. f4 {[%clk 0:00:02.8]}
41... f5 {[%clk 0:00:45.8]} 42. Ke5 {[%clk 0:00:00.4]} 42... Kg6 {[%clk
0:00:45.9]} 43. Ke6 {[%clk 0:00:00.9]} 43... Bf6 {[%clk 0:00:45.7]} 44. Bg3
{[%clk 0:00:01.5]} 44... Bd8 {[%clk 0:00:43.3]} 45. a4 {[%clk 0:00:01.8]} 45...
b5 {[%clk 0:00:33]} 46. axb5 {[%clk 0:00:01.6]} 46... axb5 {[%clk 0:00:33.2]}
47. Kd7 {[%clk 0:00:01.9]} 47... Bf6 {[%clk 0:00:32.7]} 48. Kc6 {[%clk
0:00:02.4]} 48... b4 {[%clk 0:00:32.9]} 49. Be1 {[%clk 0:00:02.5]} 49... Bc3
{[%clk 0:00:31.5]} 50. Bf2 {[%clk 0:00:02.1]} 50... Bd2 {[%clk 0:00:31.4]} 51.
Bg3 {[%clk 0:00:02.4]} 51... Kf6 {[%clk 0:00:31.3]} 52. Kd5 {[%clk 0:00:02.8]}
52... Bc3 {[%clk 0:00:30.6]} 53. Kd6 {[%clk 0:00:03]} 53... Bd2 {[%clk
0:00:28.8]} 54. Kd5 {[%clk 0:00:02.6]} 54... Bc3 {[%clk 0:00:29.1]} 55. Bf2
{[%clk 0:00:02.9]} 55... Bd2 {[%clk 0:00:29]} 56. Bg3 {[%clk 0:00:02.7]} 1/2-1/2

[Event "Early-Titled-Tuesday-Blitz-May-14-2024"]
[Site "Chess.com"]
[Date "2024.05.14"]
[Round "7"]
[White "Bauman_Guy"]
[Black "Ginger_GM"]
[Result "1-0"]
[WhiteElo "2895"]
[BlackElo "2663"]
[TimeControl "180+1"]
[EndTime "9:20:30 PDT"]
[Termination "Bauman_Guy won by resignation"]

1. e4 {[%clk 0:03:00.9]} 1... d6 {[%clk 0:02:59.7]} 2. d4 {[%clk 0:03:00.4]}
2... Nf6 {[%clk 0:03:00.1]} 3. Nc3 {[%clk 0:03:01]} 3... Nbd7 {[%clk 0:03:00.5]}
4. g3 {[%clk 0:03:00.2]} 4... e5 {[%clk 0:03:00.6]} 5. Bg2 {[%clk 0:03:00.7]}
5... h5 {[%clk 0:02:57.4]} 6. h3 {[%clk 0:02:59.7]} 6... c6 {[%clk 0:02:49.8]}
7. Nge2 {[%clk 0:02:58.6]} 7... b5 {[%clk 0:02:49.5]} 8. a3 {[%clk 0:02:58.4]}
8... Rb8 {[%clk 0:02:49.2]} 9. O-O {[%clk 0:02:58.1]} 9... Be7 {[%clk
0:02:49.4]} 10. Be3 {[%clk 0:02:56.8]} 10... a5 {[%clk 0:02:48.5]} 11. f4 {[%clk
0:02:53.8]} 11... O-O {[%clk 0:02:48]} 12. Qe1 {[%clk 0:02:43.2]} 12... Re8
{[%clk 0:02:42]} 13. Qf2 {[%clk 0:02:42.4]} 13... b4 {[%clk 0:02:37.8]} 14. axb4
{[%clk 0:02:42.1]} 14... axb4 {[%clk 0:02:37.5]} 15. Na4 {[%clk 0:02:42.8]}
15... exd4 {[%clk 0:02:34.9]} 16. Nxd4 {[%clk 0:02:42.9]} 16... Bb7 {[%clk
0:02:34.5]} 17. e5 {[%clk 0:02:25.7]} 17... dxe5 {[%clk 0:02:32.1]} 18. Nxc6
{[%clk 0:02:25]} 18... Bxc6 {[%clk 0:02:29.3]} 19. Bxc6 {[%clk 0:02:25.9]} 19...
Qc7 {[%clk 0:02:27.9]} 20. Bf3 {[%clk 0:02:20.3]} 20... e4 {[%clk 0:02:26.5]}
21. Bg2 {[%clk 0:02:19.9]} 21... Rbc8 {[%clk 0:02:17]} 22. Rac1 {[%clk
0:02:19.1]} 22... Nc5 {[%clk 0:02:15.9]} 23. Nxc5 {[%clk 0:02:14.9]} 23... Bxc5
{[%clk 0:02:15.6]} 24. Rfd1 {[%clk 0:02:15.6]} 24... Qb6 {[%clk 0:02:03.9]} 25.
Bxc5 {[%clk 0:02:12.9]} 25... Qxc5 {[%clk 0:02:04]} 26. c3 {[%clk 0:02:01.8]}
26... e3 {[%clk 0:02:01.2]} 27. Qe2 {[%clk 0:02:01.9]} 27... Ne4 {[%clk
0:01:43.6]} 28. Bxe4 {[%clk 0:01:46.5]} 28... Rxe4 {[%clk 0:01:43.3]} 29. h4
{[%clk 0:01:46.8]} 29... b3 {[%clk 0:01:31.7]} 30. Rd3 {[%clk 0:01:44.2]} 30...
Rce8 {[%clk 0:01:31.6]} 31. Rcd1 {[%clk 0:01:43.1]} 31... g6 {[%clk 0:01:30.7]}
32. Rd4 {[%clk 0:01:31.7]} 32... Rxd4 {[%clk 0:01:25.2]} 33. Rxd4 {[%clk
0:01:30.4]} 33... Qf5 {[%clk 0:01:25]} 34. Rd3 {[%clk 0:01:24.6]} 34... Qe4
{[%clk 0:01:24.7]} 35. Rd4 {[%clk 0:01:13.8]} 35... Qc2 {[%clk 0:01:15.9]} 36.
Kf1 {[%clk 0:01:12.4]} 36... Ra8 {[%clk 0:01:09.4]} 37. Rd1 {[%clk 0:01:10.7]}
37... Ra2 {[%clk 0:01:03.3]} 38. Qxc2 {[%clk 0:01:09]} 38... bxc2 {[%clk
0:01:03.3]} 39. Rc1 {[%clk 0:01:09.9]} 39... Rxb2 {[%clk 0:01:03.7]} 40. Ke2
{[%clk 0:01:10.5]} 40... Rb1 {[%clk 0:00:39]} 41. Rxc2 {[%clk 0:01:09]} 41...
Rg1 {[%clk 0:00:39]} 42. Kf3 {[%clk 0:01:00.7]} 42... Kf8 {[%clk 0:00:28.4]} 43.
Re2 {[%clk 0:00:59.9]} 43... Ke7 {[%clk 0:00:28.6]} 44. Rxe3+ {[%clk 0:00:59.9]}
44... Kd6 {[%clk 0:00:29]} 45. Ke4 {[%clk 0:00:53.8]} 45... Rg2 {[%clk
0:00:21.3]} 46. f5 {[%clk 0:00:52.1]} 46... Rf2 {[%clk 0:00:19.7]} 47. Rf3
{[%clk 0:00:46.6]} 47... Re2+ {[%clk 0:00:19.5]} 48. Kf4 {[%clk 0:00:46.8]}
48... gxf5 {[%clk 0:00:14.5]} 49. Kxf5 {[%clk 0:00:45.5]} 49... Ke7 {[%clk
0:00:13]} 50. Kf4 {[%clk 0:00:35.8]} 50... Kf6 {[%clk 0:00:12.4]} 51. Re3 {[%clk
0:00:36.2]} 51... Rc2 {[%clk 0:00:12.3]} 52. Ke4 {[%clk 0:00:36.7]} 52... Kg6
{[%clk 0:00:11.7]} 53. Rf3 {[%clk 0:00:31.1]} 53... f6 {[%clk 0:00:10.1]} 54.
Kd5 {[%clk 0:00:30.2]} 54... Rd2+ {[%clk 0:00:06.8]} 55. Kc5 {[%clk 0:00:29.8]}
55... Kf7 {[%clk 0:00:05.8]} 56. c4 {[%clk 0:00:28.7]} 56... Ke6 {[%clk
0:00:06.3]} 57. Kc6 {[%clk 0:00:27.6]} 57... Rd8 {[%clk 0:00:05.3]} 58. c5
{[%clk 0:00:27.6]} 58... f5 {[%clk 0:00:03.8]} 59. Kc7 {[%clk 0:00:26.9]} 59...
Rd5 {[%clk 0:00:03]} 60. c6 {[%clk 0:00:26.7]} 60... Rc5 {[%clk 0:00:03.2]} 61.
Kb7 {[%clk 0:00:24.5]} 1-0

[Event "Early-Titled-Tuesday-Blitz-May-14-2024"]
[Site "Chess.com"]
[Date "2024.05.14"]
[Round "7"]
[White "Lady_Nika"]
[Black "MalyDominator"]
[Result "0-1"]
[WhiteElo "2485"]
[BlackElo "2642"]
[TimeControl "180+1"]
[EndTime "9:20:30 PDT"]
[Termination "MalyDominator won by resignation"]

1. d4 {[%clk 0:03:00.9]} 1... d5 {[%clk 0:02:55.1]} 2. e3 {[%clk 0:03:00.7]}
2... Nf6 {[%clk 0:02:54.7]} 3. f4 {[%clk 0:03:00.6]} 3... Ne4 {[%clk 0:02:52.8]}
4. Nf3 {[%clk 0:03:00.5]} 4... c5 {[%clk 0:02:53.1]} 5. Bd3 {[%clk 0:02:59.5]}
5... Bf5 {[%clk 0:02:52.2]} 6. O-O {[%clk 0:02:59.2]} 6... h6 {[%clk 0:02:52.7]}
7. c3 {[%clk 0:02:59.2]} 7... e6 {[%clk 0:02:52.8]} 8. Qe2 {[%clk 0:02:59.2]}
8... Be7 {[%clk 0:02:53.1]} 9. Nbd2 {[%clk 0:02:59.1]} 9... O-O {[%clk
0:02:52.8]} 10. Ne5 {[%clk 0:02:57.5]} 10... Nd7 {[%clk 0:02:48.3]} 11. Nxe4
{[%clk 0:02:52.7]} 11... dxe4 {[%clk 0:02:45.5]} 12. Bc2 {[%clk 0:02:52.7]}
12... f6 {[%clk 0:02:35.3]} 13. Ng4 {[%clk 0:02:49.4]} 13... Rc8 {[%clk
0:02:29.7]} 14. Nf2 {[%clk 0:02:49.3]} 14... cxd4 {[%clk 0:02:24.4]} 15. exd4
{[%clk 0:02:49]} 15... e5 {[%clk 0:02:15.7]} 16. dxe5 {[%clk 0:02:37.8]} 16...
fxe5 {[%clk 0:02:15.4]} 17. Nxe4 {[%clk 0:02:37.9]} 17... Nc5 {[%clk 0:02:04]}
18. Ng3 {[%clk 0:02:26.9]} 18... Bxc2 {[%clk 0:01:55.7]} 19. Qxc2 {[%clk
0:02:25.9]} 19... Qd3 {[%clk 0:01:56]} 20. Qe2 {[%clk 0:01:58.8]} 20... Qxe2
{[%clk 0:01:42.6]} 21. Nxe2 {[%clk 0:01:58.5]} 21... Nd3 {[%clk 0:01:43.3]} 22.
Be3 {[%clk 0:01:57.2]} 22... exf4 {[%clk 0:01:39.2]} 23. Nxf4 {[%clk 0:01:56]}
23... Nxb2 {[%clk 0:01:39.2]} 24. Nd5 {[%clk 0:01:36.6]} 24... Rxf1+ {[%clk
0:01:13.3]} 25. Rxf1 {[%clk 0:01:35.7]} 25... Bc5 {[%clk 0:01:13.5]} 26. Rb1
{[%clk 0:01:35]} 26... Ba3 {[%clk 0:00:36.9]} 27. Bxa7 {[%clk 0:01:24.4]} 27...
Rd8 {[%clk 0:00:30.9]} 28. Nb4 {[%clk 0:01:15.6]} 28... Rd2 {[%clk 0:00:20.3]}
29. Kf1 {[%clk 0:00:43.2]} 29... Nd1 {[%clk 0:00:15.5]} 30. Rb3 {[%clk
0:00:15.4]} 30... Bxb4 {[%clk 0:00:13.8]} 31. cxb4 {[%clk 0:00:11.3]} 31... Rxa2
{[%clk 0:00:13.3]} 32. Bc5 {[%clk 0:00:10.8]} 32... Nb2 {[%clk 0:00:12.7]} 33.
Re3 {[%clk 0:00:07.8]} 33... Nc4 {[%clk 0:00:12.4]} 34. Re8+ {[%clk 0:00:07.9]}
34... Kh7 {[%clk 0:00:11.4]} 35. Re7 {[%clk 0:00:08.2]} 35... b5 {[%clk
0:00:08.8]} 36. Bd4 {[%clk 0:00:08.3]} 36... Kg6 {[%clk 0:00:06.4]} 37. Rxg7+
{[%clk 0:00:07]} 37... Kf5 {[%clk 0:00:07]} 38. Re7 {[%clk 0:00:06.6]} 38...
Nd2+ {[%clk 0:00:06.1]} 39. Kg1 {[%clk 0:00:06.8]} 39... Rc2 {[%clk 0:00:05.2]}
40. h3 {[%clk 0:00:06.4]} 40... Nc4 {[%clk 0:00:04.4]} 41. Bc5 {[%clk
0:00:06.2]} 41... Rc1+ {[%clk 0:00:04.4]} 42. Kh2 {[%clk 0:00:06.1]} 42... Rc2
{[%clk 0:00:05.1]} 43. Rb7 {[%clk 0:00:06.1]} 43... Nd2 {[%clk 0:00:03.8]} 44.
Rxb5 {[%clk 0:00:05.8]} 44... Ke4 {[%clk 0:00:03.6]} 45. Rb8 {[%clk 0:00:04.3]}
45... h5 {[%clk 0:00:04]} 46. Re8+ {[%clk 0:00:04.1]} 46... Kd3 {[%clk
0:00:04.4]} 47. Re3+ {[%clk 0:00:04]} 47... Kc4 {[%clk 0:00:04.2]} 48. Rg3
{[%clk 0:00:04]} 48... Nf1+ {[%clk 0:00:04.3]} 0-1

[Event "Early-Titled-Tuesday-Blitz-May-14-2024"]
[Site "Chess.com"]
[Date "2024.05.14"]
[Round "7"]
[White "hongnhung1234"]
[Black "BardArtem"]
[Result "0-1"]
[WhiteElo "2566"]
[BlackElo "2765"]
[TimeControl "180+1"]
[EndTime "9:20:37 PDT"]
[Termination "BardArtem won on time"]

1. e4 {[%clk 0:03:00.9]} 1... e5 {[%clk 0:02:58.7]} 2. Nf3 {[%clk 0:03:00.2]}
2... Nc6 {[%clk 0:02:56.3]} 3. d4 {[%clk 0:03:00.6]} 3... exd4 {[%clk
0:02:51.2]} 4. Nxd4 {[%clk 0:03:01.5]} 4... Bb4+ {[%clk 0:02:51.5]} 5. c3 {[%clk
0:02:59]} 5... Bc5 {[%clk 0:02:50.1]} 6. Be3 {[%clk 0:02:58.3]} 6... Bb6 {[%clk
0:02:49.3]} 7. Bc4 {[%clk 0:02:55.9]} 7... Nf6 {[%clk 0:02:47.2]} 8. Nd2 {[%clk
0:02:45.6]} 8... O-O {[%clk 0:02:45.4]} 9. O-O {[%clk 0:02:44.7]} 9... d5 {[%clk
0:02:37]} 10. exd5 {[%clk 0:02:27.5]} 10... Nxd5 {[%clk 0:02:37.9]} 11. Nxc6
{[%clk 0:02:25.1]} 11... bxc6 {[%clk 0:02:38.8]} 12. Bxd5 {[%clk 0:02:22.3]}
12... cxd5 {[%clk 0:02:35.5]} 13. Bxb6 {[%clk 0:02:19.4]} 13... axb6 {[%clk
0:02:36.4]} 14. h3 {[%clk 0:02:14.2]} 14... d4 {[%clk 0:02:19.5]} 15. cxd4
{[%clk 0:02:07.4]} 15... Qxd4 {[%clk 0:02:18.9]} 16. Qc2 {[%clk 0:02:04.2]}
16... c5 {[%clk 0:02:01.9]} 17. Nf3 {[%clk 0:01:58.4]} 17... Qf4 {[%clk
0:01:57.3]} 18. Rfe1 {[%clk 0:01:50.9]} 18... Bxh3 {[%clk 0:01:50.7]} 19. Re4
{[%clk 0:01:45.6]} 19... Bf5 {[%clk 0:01:44.5]} 20. Rxf4 {[%clk 0:01:43]} 20...
Bxc2 {[%clk 0:01:45.4]} 21. Ne5 {[%clk 0:01:37.9]} 21... Rfe8 {[%clk 0:01:33.3]}
22. Nc4 {[%clk 0:01:25.3]} 22... Ra4 {[%clk 0:01:19.2]} 23. Nd6 {[%clk
0:01:02.3]} 23... Rxf4 {[%clk 0:01:16.4]} 24. Nxe8 {[%clk 0:01:02.5]} 24... g5
{[%clk 0:01:10.2]} 25. Re1 {[%clk 0:00:56.3]} 25... Rd4 {[%clk 0:00:59.3]} 26.
Re2 {[%clk 0:00:50.3]} 26... Bd3 {[%clk 0:00:51.1]} 27. Re5 {[%clk 0:00:45.5]}
27... h6 {[%clk 0:00:46.1]} 28. Re3 {[%clk 0:00:31.5]} 28... Bg6 {[%clk
0:00:35.9]} 29. Re2 {[%clk 0:00:28.2]} 29... b5 {[%clk 0:00:32.8]} 30. a3 {[%clk
0:00:25.9]} 30... b4 {[%clk 0:00:27.9]} 31. axb4 {[%clk 0:00:24.9]} 31... cxb4
{[%clk 0:00:28.7]} 32. Nc7 {[%clk 0:00:24.9]} 32... b3 {[%clk 0:00:24.9]} 33.
Nb5 {[%clk 0:00:24.7]} 33... Rd5 {[%clk 0:00:18.6]} 34. Nc3 {[%clk 0:00:22.6]}
34... Rc5 {[%clk 0:00:15.9]} 35. Re8+ {[%clk 0:00:20.1]} 35... Kg7 {[%clk
0:00:15.6]} 36. Rb8 {[%clk 0:00:20.8]} 36... Bc2 {[%clk 0:00:15.7]} 37. f3
{[%clk 0:00:19.1]} 37... Rc7 {[%clk 0:00:11.3]} 38. Kf2 {[%clk 0:00:12.3]} 38...
Rd7 {[%clk 0:00:11.2]} 39. Ke3 {[%clk 0:00:11.6]} 39... f5 {[%clk 0:00:09.1]}
40. g3 {[%clk 0:00:08.2]} 40... h5 {[%clk 0:00:06.1]} 41. Rb6 {[%clk 0:00:07.3]}
41... h4 {[%clk 0:00:04.7]} 42. gxh4 {[%clk 0:00:05.2]} 42... gxh4 {[%clk
0:00:05.6]} 43. Rb4 {[%clk 0:00:05]} 43... h3 {[%clk 0:00:04.2]} 44. Rh4 {[%clk
0:00:05.2]} 44... Rd3+ {[%clk 0:00:04.8]} 45. Ke2 {[%clk 0:00:01.1]} 45... Rxc3
{[%clk 0:00:05.3]} 0-1

[Event "Early-Titled-Tuesday-Blitz-May-14-2024"]
[Site "Chess.com"]
[Date "2024.05.14"]
[Round "7"]
[White "LeoWin2012"]
[Black "secrethawk1"]
[Result "1/2-1/2"]
[WhiteElo "2323"]
[BlackElo "2435"]
[TimeControl "180+1"]
[EndTime "9:20:38 PDT"]
[Termination "Game drawn by repetition"]

1. e4 {[%clk 0:03:00.9]} 1... c6 {[%clk 0:02:33.4]} 2. d4 {[%clk 0:02:51.8]}
2... d5 {[%clk 0:02:34.3]} 3. exd5 {[%clk 0:02:47.7]} 3... cxd5 {[%clk
0:02:33.9]} 4. Bd3 {[%clk 0:02:48.6]} 4... Nc6 {[%clk 0:02:32.8]} 5. c3 {[%clk
0:02:48.9]} 5... Nf6 {[%clk 0:02:32.1]} 6. h3 {[%clk 0:02:46.5]} 6... g6 {[%clk
0:02:31.9]} 7. Bf4 {[%clk 0:02:45.6]} 7... Bg7 {[%clk 0:02:31.7]} 8. Nf3 {[%clk
0:02:45.9]} 8... O-O {[%clk 0:02:31.1]} 9. O-O {[%clk 0:02:46.1]} 9... Bf5
{[%clk 0:02:29.9]} 10. Re1 {[%clk 0:02:46.3]} 10... Bxd3 {[%clk 0:02:28.3]} 11.
Qxd3 {[%clk 0:02:46.3]} 11... e6 {[%clk 0:02:28.8]} 12. Nbd2 {[%clk 0:02:46.5]}
12... a6 {[%clk 0:02:26.9]} 13. Ne5 {[%clk 0:02:46.7]} 13... Rc8 {[%clk
0:02:22.6]} 14. Re2 {[%clk 0:02:42.3]} 14... b5 {[%clk 0:02:20.3]} 15. Ndf3
{[%clk 0:02:35.9]} 15... Nd7 {[%clk 0:02:14.1]} 16. Nxc6 {[%clk 0:02:34.4]}
16... Rxc6 {[%clk 0:02:13.2]} 17. Ne5 {[%clk 0:02:35.1]} 17... Rb6 {[%clk
0:02:05.8]} 18. Rae1 {[%clk 0:02:24.1]} 18... a5 {[%clk 0:01:58.7]} 19. Qg3
{[%clk 0:02:14]} 19... b4 {[%clk 0:01:55.2]} 20. Nd3 {[%clk 0:02:09.3]} 20...
Qe7 {[%clk 0:01:49.4]} 21. Bc7 {[%clk 0:02:07.7]} 21... Ra6 {[%clk 0:01:45.7]}
22. Ne5 {[%clk 0:02:03.1]} 22... bxc3 {[%clk 0:01:42.4]} 23. bxc3 {[%clk
0:02:00]} 23... Rc8 {[%clk 0:01:41.8]} 24. Nxd7 {[%clk 0:01:59.7]} 24... Qxd7
{[%clk 0:01:41.8]} 25. Be5 {[%clk 0:02:00.1]} 25... Bxe5 {[%clk 0:01:39.1]} 26.
Rxe5 {[%clk 0:01:59.8]} 26... Qa4 {[%clk 0:01:35.5]} 27. R1e2 {[%clk 0:01:50]}
27... Rac6 {[%clk 0:01:33.2]} 28. R5e3 {[%clk 0:01:47.7]} 28... Qa3 {[%clk
0:01:18.9]} 29. Rc2 {[%clk 0:01:41.9]} 29... Rc4 {[%clk 0:01:12.7]} 30. Kh2
{[%clk 0:01:37.4]} 30... Qa4 {[%clk 0:01:08.3]} 31. Rce2 {[%clk 0:01:32.5]}
31... Qc6 {[%clk 0:01:00.6]} 32. Qg4 {[%clk 0:01:00.6]} 32... h5 {[%clk
0:00:23.9]} 33. Qg5 {[%clk 0:00:51.8]} 33... Rxc3 {[%clk 0:00:23.1]} 34. Rxe6
{[%clk 0:00:29.5]} 34... Qc7+ {[%clk 0:00:19.4]} 35. R6e5 {[%clk 0:00:29.4]}
35... Rd3 {[%clk 0:00:18.8]} 36. g3 {[%clk 0:00:21.3]} 36... Rxd4 {[%clk
0:00:17.1]} 37. Rxd5 {[%clk 0:00:20.6]} 37... Rxd5 {[%clk 0:00:09.6]} 38. Qxd5
{[%clk 0:00:21.5]} 38... Qc4 {[%clk 0:00:07.4]} 39. Qe5 {[%clk 0:00:17]} 39...
a4 {[%clk 0:00:05.6]} 40. h4 {[%clk 0:00:17]} 40... a3 {[%clk 0:00:05.1]} 41.
Qe3 {[%clk 0:00:17.1]} 41... Qb4 {[%clk 0:00:04.3]} 42. Qd3 {[%clk 0:00:15.6]}
42... Rb8 {[%clk 0:00:03.9]} 43. Re4 {[%clk 0:00:13.8]} 43... Qc5 {[%clk
0:00:04.1]} 44. Re2 {[%clk 0:00:13.5]} 44... Rb2 {[%clk 0:00:03.1]} 45. Qd8+
{[%clk 0:00:12.8]} 45... Kg7 {[%clk 0:00:02.7]} 46. Qd3 {[%clk 0:00:06.8]} 46...
Rxe2 {[%clk 0:00:02.2]} 47. Qxe2 {[%clk 0:00:07.7]} 47... Qc3 {[%clk 0:00:02]}
48. Kg2 {[%clk 0:00:04.1]} 48... Qb2 {[%clk 0:00:01.4]} 49. Qc4 {[%clk
0:00:04.3]} 49... Qb7+ {[%clk 0:00:00.8]} 50. Kh2 {[%clk 0:00:03.6]} 50... Qb2
{[%clk 0:00:01.7]} 51. Kg2 {[%clk 0:00:03.4]} 51... Qb7+ {[%clk 0:00:01.5]} 52.
Kh2 {[%clk 0:00:03.3]} 52... Qb2 {[%clk 0:00:01.9]} 53. Kg1 {[%clk 0:00:03.3]}
53... Qb1+ {[%clk 0:00:01.6]} 54. Kh2 {[%clk 0:00:02.1]} 54... Qb2 {[%clk
0:00:01.9]} 1/2-1/2